{"text_format":"3","workbook":"xlsx","n_sheets":1,"sheets":["Προϋπολογισμός γιορτών"],"not_rendered":{"defined_names":1},"read":"whole","date_system":"1900"}

{"sheet":"Προϋπολογισμός γιορτών","index":0,"n_rows":37,"n_cols":12,"rows_kept":37,"merged":[[1,1,7,4],[9,1,9,4],[9,8,9,11],[19,1,19,4],[19,8,19,11],[30,1,30,4],[30,8,30,11]]}
[]
[null,"Προϋπολογισμός γιορτών Πρόγραμμα"]
[]
[{"$nulls":8},"ΠΡΟΫΠΟΛΟΓΙΣΜΟΣ ΓΙΟΡΤΩΝ",null,{"$f":"SUM(Δώρα[Προϋπολογισμός],Συσκευασία[Προϋπολογισμός],(Ταξίδια[Προϋπολογισμός],(Γεύματα[Προϋπολογισμός],(Ψυχαγωγία[Προϋπολογισμός],Διάφορα[Προϋπολογισμός]))))","v":{"v":750,"d":"750.00 €"}}]
[{"$nulls":8},"ΠΡΑΓΜΑΤΙΚΗ ΔΑΠΑΝΗ",null,{"$f":"SUM((Δώρα[Πραγματικό ποσό],(Συσκευασία[Πραγματικά],(Ταξίδια[Πραγματικό ποσό],(Γεύματα[Πραγματικό ποσό],(Ψυχαγωγία[Πραγματικά],(Διάφορα[Πραγματικό ποσό])))))))","v":{"v":820,"d":"820.00 €"}}]
[]
[{"$nulls":8},"ΔΙΑΦΟΡΆ (επάνω/κάτω από τον προϋπολογισμό)",null,{"$f":"SUM(K4-K5)","v":{"v":-70,"d":"-70.00 €"}}]
[]
[]
[null,"Δώρα",{"$nulls":6},"Γεύματα διακοπών"]
[null,"Στοιχείο","Προϋπολογισμός","Πραγματικό ποσό","Διαφορά",{"$nulls":3},"Στοιχείο","Προϋπολογισμός","Πραγματικό ποσό","Διαφορά"]
[null,"Οικογένεια",{"v":500,"d":"500.00 €"},{"v":495,"d":"495.00 €"},{"$f":"Δώρα[[#This Row],[Προϋπολογισμός]]-Δώρα[[#This Row],[Πραγματικό ποσό]]","v":{"v":5,"d":"5.00 €"}},{"$nulls":3},"Ψώνια",null,null,{"$f":"Γεύματα[[#This Row],[Προϋπολογισμός]]-Γεύματα[[#This Row],[Πραγματικό ποσό]]","v":{"v":0,"d":"0.00 €"}}]
[null,"Φίλοι",{"v":250,"d":"250.00 €"},{"v":325,"d":"325.00 €"},{"$f":"Δώρα[[#This Row],[Προϋπολογισμός]]-Δώρα[[#This Row],[Πραγματικό ποσό]]","v":{"v":-75,"d":"-75.00 €"}},{"$nulls":3},"Αλκοολούχα ποτά",null,null,{"$f":"Γεύματα[[#This Row],[Προϋπολογισμός]]-Γεύματα[[#This Row],[Πραγματικό ποσό]]","v":{"v":0,"d":"0.00 €"}}]
[null,"Συνεργάτες",null,null,{"$f":"Δώρα[[#This Row],[Προϋπολογισμός]]-Δώρα[[#This Row],[Πραγματικό ποσό]]","v":{"v":0,"d":"0.00 €"}},{"$nulls":3},"Διακοσμήσεις",null,null,{"$f":"Γεύματα[[#This Row],[Προϋπολογισμός]]-Γεύματα[[#This Row],[Πραγματικό ποσό]]","v":{"v":0,"d":"0.00 €"}}]
[null,"Δάσκαλοι, νταντάδες κ.λπ.",null,null,{"$f":"Δώρα[[#This Row],[Προϋπολογισμός]]-Δώρα[[#This Row],[Πραγματικό ποσό]]","v":{"v":0,"d":"0.00 €"}},{"$nulls":3},"Άλλα (καρτέλα στην τελευταία στήλη αυτής της γραμμής για να προσθέσετε μια γραμμή)",null,null,{"$f":"Γεύματα[[#This Row],[Προϋπολογισμός]]-Γεύματα[[#This Row],[Πραγματικό ποσό]]","v":{"v":0,"d":"0.00 €"}}]
[null,"Φιλανθρωπικές δωρεές",null,null,{"$f":"Δώρα[[#This Row],[Προϋπολογισμός]]-Δώρα[[#This Row],[Πραγματικό ποσό]]","v":{"v":0,"d":"0.00 €"}},{"$nulls":3},"Άθροισμα",{"$f":"SUBTOTAL(109,Γεύματα[Προϋπολογισμός])","v":{"v":0,"d":"0.00 €"}},{"$f":"SUBTOTAL(109,Γεύματα[Πραγματικό ποσό])","v":{"v":0,"d":"0.00 €"}},{"$f":"SUBTOTAL(109,Γεύματα[Διαφορά])","v":{"v":0,"d":"0.00 €"}}]
[null,"Άλλα (καρτέλα στην τελευταία στήλη αυτής της γραμμής για να προσθέσετε μια γραμμή)",null,null,{"$f":"Δώρα[[#This Row],[Προϋπολογισμός]]-Δώρα[[#This Row],[Πραγματικό ποσό]]","v":{"v":0,"d":"0.00 €"}}]
[null,"Άθροισμα",{"$f":"SUBTOTAL(109,Δώρα[Προϋπολογισμός])","v":{"v":750,"d":"750.00 €"}},{"$f":"SUBTOTAL(109,Δώρα[Πραγματικό ποσό])","v":{"v":820,"d":"820.00 €"}},{"$f":"SUBTOTAL(109,Δώρα[Διαφορά])","v":{"v":-70,"d":"-70.00 €"}}]
[]
[null,"Συσκευασία",{"$nulls":6},"Ψυχαγωγία"]
[null,"Στοιχείο","Προϋπολογισμός","Πραγματικά","Διαφορά",{"$nulls":3},"Στοιχείο","Προϋπολογισμός","Πραγματικά","Διαφορά"]
[null,"Τύλιγμα δώρων",null,null,{"$f":"Συσκευασία[[#This Row],[Προϋπολογισμός]]-Συσκευασία[[#This Row],[Πραγματικά]]","v":{"v":0,"d":"0.00 €"}},{"$nulls":3},"Προσωπικό πάρτι (μπάρμαν, κέτερινγκ, προσωπικό καθαριότητας κ.λπ.)",null,null,{"$f":"Ψυχαγωγία[[#This Row],[Προϋπολογισμός]]-Ψυχαγωγία[[#This Row],[Πραγματικά]]","v":{"v":0,"d":"0.00 €"}}]
[null,"Ετικέτες",null,null,{"$f":"Συσκευασία[[#This Row],[Προϋπολογισμός]]-Συσκευασία[[#This Row],[Πραγματικά]]","v":{"v":0,"d":"0.00 €"}},{"$nulls":3},"Διακοσμήσεις",null,null,{"$f":"Ψυχαγωγία[[#This Row],[Προϋπολογισμός]]-Ψυχαγωγία[[#This Row],[Πραγματικά]]","v":{"v":0,"d":"0.00 €"}}]
[null,"Προμήθειες (κορδέλα, σελοτέιπ κ.λπ.)",null,null,{"$f":"Συσκευασία[[#This Row],[Προϋπολογισμός]]-Συσκευασία[[#This Row],[Πραγματικά]]","v":{"v":0,"d":"0.00 €"}},{"$nulls":3},"Τρόφιμα και ποτά",null,null,{"$f":"Ψυχαγωγία[[#This Row],[Προϋπολογισμός]]-Ψυχαγωγία[[#This Row],[Πραγματικά]]","v":{"v":0,"d":"0.00 €"}}]
[null,"Πλαίσια",null,null,{"$f":"Συσκευασία[[#This Row],[Προϋπολογισμός]]-Συσκευασία[[#This Row],[Πραγματικά]]","v":{"v":0,"d":"0.00 €"}},{"$nulls":3},"Ρούχα",null,null,{"$f":"Ψυχαγωγία[[#This Row],[Προϋπολογισμός]]-Ψυχαγωγία[[#This Row],[Πραγματικά]]","v":{"v":0,"d":"0.00 €"}}]
[null,"Ταχυδρομικά τέλη",null,null,{"$f":"Συσκευασία[[#This Row],[Προϋπολογισμός]]-Συσκευασία[[#This Row],[Πραγματικά]]","v":{"v":0,"d":"0.00 €"}},{"$nulls":3},"Εισιτήρια",null,null,{"$f":"Ψυχαγωγία[[#This Row],[Προϋπολογισμός]]-Ψυχαγωγία[[#This Row],[Πραγματικά]]","v":{"v":0,"d":"0.00 €"}}]
[null,"Άλλα (καρτέλα στην τελευταία στήλη αυτής της γραμμής για να προσθέσετε μια γραμμή)",null,null,{"$f":"Συσκευασία[[#This Row],[Προϋπολογισμός]]-Συσκευασία[[#This Row],[Πραγματικά]]","v":{"v":0,"d":"0.00 €"}},{"$nulls":3},"Δείπνα έξω",null,null,{"$f":"Ψυχαγωγία[[#This Row],[Προϋπολογισμός]]-Ψυχαγωγία[[#This Row],[Πραγματικά]]","v":{"v":0,"d":"0.00 €"}}]
[null,"Άθροισμα",{"$f":"SUBTOTAL(109,Συσκευασία[Προϋπολογισμός])","v":{"v":0,"d":"0.00 €"}},{"$f":"SUBTOTAL(109,Συσκευασία[Πραγματικά])","v":{"v":0,"d":"0.00 €"}},{"$f":"SUBTOTAL(109,Συσκευασία[Διαφορά])","v":{"v":0,"d":"0.00 €"}},{"$nulls":3},"Άλλα (καρτέλα στην τελευταία στήλη αυτής της γραμμής για να προσθέσετε μια γραμμή)",null,null,{"$f":"Ψυχαγωγία[[#This Row],[Προϋπολογισμός]]-Ψυχαγωγία[[#This Row],[Πραγματικά]]","v":{"v":0,"d":"0.00 €"}}]
[{"$nulls":8},"Άθροισμα",{"$f":"SUBTOTAL(109,Ψυχαγωγία[Προϋπολογισμός])","v":{"v":0,"d":"0.00 €"}},{"$f":"SUBTOTAL(109,Ψυχαγωγία[Πραγματικά])","v":{"v":0,"d":"0.00 €"}},{"$f":"SUBTOTAL(109,Ψυχαγωγία[Διαφορά])","v":{"v":0,"d":"0.00 €"}}]
[]
[null,"Ταξίδια",{"$nulls":6},"Διάφορα"]
[null,"Στοιχείο","Προϋπολογισμός","Πραγματικό ποσό","Διαφορά",{"$nulls":3},"Στοιχείο","Προϋπολογισμός","Πραγματικό ποσό","Διαφορά"]
[null,"Αεροπορικά εισιτήρια",null,null,{"$f":"Ταξίδια[[#This Row],[Προϋπολογισμός]]-Ταξίδια[[#This Row],[Πραγματικό ποσό]]","v":{"v":0,"d":"0.00 €"}},{"$nulls":3},"Φωτογραφίες γιορτών",null,null,{"$f":"Διάφορα[[#This Row],[Προϋπολογισμός]]-Διάφορα[[#This Row],[Πραγματικό ποσό]]","v":{"v":0,"d":"0.00 €"}}]
[null,"Κατάλυμα",null,null,{"$f":"Ταξίδια[[#This Row],[Προϋπολογισμός]]-Ταξίδια[[#This Row],[Πραγματικό ποσό]]","v":{"v":0,"d":"0.00 €"}},{"$nulls":3},"Βενζίνη ",null,null,{"$f":"Διάφορα[[#This Row],[Προϋπολογισμός]]-Διάφορα[[#This Row],[Πραγματικό ποσό]]","v":{"v":0,"d":"0.00 €"}}]
[null,"Μετακινήσεις",null,null,{"$f":"Ταξίδια[[#This Row],[Προϋπολογισμός]]-Ταξίδια[[#This Row],[Πραγματικό ποσό]]","v":{"v":0,"d":"0.00 €"}},{"$nulls":3},"Άλλα (καρτέλα στην τελευταία στήλη αυτής της γραμμής για να προσθέσετε μια γραμμή)",null,null,{"$f":"Διάφορα[[#This Row],[Προϋπολογισμός]]-Διάφορα[[#This Row],[Πραγματικό ποσό]]","v":{"v":0,"d":"0.00 €"}}]
[null,"Άλλα (καρτέλα στην τελευταία στήλη αυτής της γραμμής για να προσθέσετε μια γραμμή)",null,null,{"$f":"Ταξίδια[[#This Row],[Προϋπολογισμός]]-Ταξίδια[[#This Row],[Πραγματικό ποσό]]","v":{"v":0,"d":"0.00 €"}},{"$nulls":3},"Άθροισμα",{"$f":"SUBTOTAL(109,Διάφορα[Προϋπολογισμός])","v":{"v":0,"d":"0.00 €"}},{"$f":"SUBTOTAL(109,Διάφορα[Πραγματικό ποσό])","v":{"v":0,"d":"0.00 €"}},{"$f":"SUBTOTAL(109,Διάφορα[Διαφορά])","v":{"v":0,"d":"0.00 €"}}]
[null,"Άθροισμα",{"$f":"SUBTOTAL(109,Ταξίδια[Προϋπολογισμός])","v":{"v":0,"d":"0.00 €"}},{"$f":"SUBTOTAL(109,Ταξίδια[Πραγματικό ποσό])","v":{"v":0,"d":"0.00 €"}},{"$f":"SUBTOTAL(109,Ταξίδια[Διαφορά])","v":{"v":0,"d":"0.00 €"}}]